fUST/lending_fUST_20250209
["ID","MTS","AMOUNT","RATE_DAILY","PERIOD"]
[352376426,1739068234131,-500.0,0.00010958,2]
[352376427,1739068234141,-524.41969836,0.00010958,2]
[352376428,1739068234150,-500.0,0.00010958,2]
[352376429,1739068234161,-500.0,0.00010958,2]
[352376430,1739068234170,-500.0,0.00010958,2]
[352376431,1739068234179,-500.0,0.00010958,2]
[352376432,1739068234189,-2068.46454267,0.00010958,2]
[352376433,1739068234306,-4323.44545733,0.00010958,2]
[352376434,1739068234316,-573.10892055,0.00010958,2]
[352376435,1739068234326,-501.67784105,0.00010958,2]
[352376436,1739068234336,-1552.82,0.00010958,2]
[352376437,1739068234346,-144.11441263,0.00010958,2]
[352376438,1739068234358,-4035.68558737,0.00010958,2]
[352376439,1739068234368,-500.0,0.00010958,2]
[352376440,1739068234378,-502.14678034,0.00010958,2]
[352376441,1739068234387,-500.0,0.00010958,2]
[352376442,1739068234397,-500.0,0.00010958,2]
[352376443,1739068234407,-500.0,0.00010958,2]
[352376444,1739068234416,-982.07,0.00010958,2]
[352376445,1739068234426,-1598.21,0.00010958,2]
[352376446,1739068234436,-501.22960478,0.00010958,2]
[352376447,1739068234445,-1429.08,0.00010958,2]
[352376448,1739068234455,-500.0,0.00010958,2]
[352376449,1739068234464,-500.0,0.00010958,2]
[352376450,1739068234474,-500.0,0.00010958,2]
[352376451,1739068234483,-500.0,0.00010958,2]
[352376452,1739068234494,-576.99811536,0.00010958,2]
[352376453,1739068234503,-748.04,0.00010958,2]
[352376454,1739068234512,-1694.97,0.00010958,2]
[352376455,1739068234522,-500.0,0.00010958,2]
[352376456,1739068234532,-500.0,0.00010958,2]
[352376457,1739068234542,-500.0,0.00010958,2]
[352376458,1739068234551,-500.0,0.00010958,2]
[352376459,1739068234561,-500.0,0.00010958,2]
[352376460,1739068234570,-813.76,0.00010958,2]
[352376461,1739068234579,-197.30647147,0.00010958,2]
[352376462,1739068234589,-500.0,0.00010958,2]
[352376463,1739068234599,-500.0,0.00010958,2]
[352376464,1739068234608,-500.0,0.00010958,2]
[352376465,1739068234617,-500.0,0.00010958,2]
[352376466,1739068234627,-603.71,0.00010958,2]
[352376467,1739068234636,-500.0,0.00010958,2]
[352376468,1739068234645,-686.45,0.00010958,2]
[352376469,1739068234655,-366.01001901,0.00010958,2]
[352376470,1739068234664,-500.0,0.00010958,2]
[352376471,1739068234674,-473.03037836,0.00010958,2]
[352376472,1739068234683,-500.0,0.00010958,2]
[352376473,1739068234693,-500.0,0.00010958,2]
[352376474,1739068234703,-1367.18,0.00010958,2]
[352376475,1739068234712,-500.0,0.00010958,2]
[352376476,1739068234722,-749.65,0.00010958,2]
[352376477,1739068234732,-500.0,0.00010958,2]
[352376478,1739068234741,-16477.62,0.00010958,2]
[352376479,1739068234752,-162.41944314,0.00010995,2]
[352376480,1739068234762,-153.0,0.00011,2]
[352376481,1739068234771,-306.0,0.00011,2]
[352376482,1739068234781,-153.0,0.00011,2]
[352376483,1739068234790,-354.7727591,0.00011,2]
[352376484,1739068234800,-153.0,0.00011,2]
[352376485,1739068234809,-215.7975175,0.00011,2]
[352376486,1739068234819,-13266.52937459,0.00011023,2]
[352376487,1739068234829,-500.0,0.00011095,2]
[352376488,1739068234842,-500.0,0.00011095,2]
[352376489,1739068234852,-450.10528504,0.00011095,2]
[352376490,1739068234862,-500.0,0.00011095,2]
[352376491,1739068234871,-500.0,0.00011095,2]
[352376492,1739068234881,-504.09934815,0.00011095,2]
[352376493,1739068234891,-504.10500536,0.00011095,2]
[352376494,1739068234901,-504.37440866,0.00011095,2]
[352376495,1739068234911,-500.0,0.00011095,2]
[352376496,1739068234920,-500.0,0.00011095,2]
[352376497,1739068234930,-647.57390556,0.00011095,2]
[352376498,1739068234940,-207.44497077,0.00011095,2]
[352376499,1739068234949,-500.0,0.00011095,2]
[352376500,1739068234959,-504.50777578,0.00011095,2]
[352376501,1739068234979,-500.0,0.00011095,2]
[352376502,1739068234995,-506.09043392,0.00011095,2]
[352376503,1739068235005,-720.35,0.00011095,2]
[352376504,1739068235015,-500.0,0.00011095,2]
[352376505,1739068235024,-500.0,0.00011095,2]
[352376506,1739068235034,-500.0,0.00011095,2]
[352376507,1739068235045,-662.9,0.00011095,2]
[352376508,1739068235055,-500.0,0.00011095,2]
[352376509,1739068235064,-524.5,0.00011095,2]
[352376510,1739068235074,-154.2139446,0.00011095,2]
[352376511,1739068235085,-500.0,0.00011095,2]
[352376512,1739068235094,-500.0,0.00011095,2]
[352376513,1739068235104,-594.09,0.00011095,2]
[352376514,1739068235114,-500.0,0.00011095,2]
[352376515,1739068235125,-500.0,0.00011095,2]
[352376516,1739068235135,-500.0,0.00011095,2]
[352376517,1739068235144,-544.77,0.00011095,2]
[352376518,1739068235154,-500.0,0.00011095,2]
[352376519,1739068235163,-500.0,0.00011095,2]
[352376520,1739068235173,-301.70851314,0.00011095,2]
[352376521,1739068235182,-500.0,0.00011095,2]
[352376522,1739068235192,-500.0,0.00011095,2]
[352376523,1739068235202,-464.23371687,0.00011095,2]
[352376524,1739068235211,-500.0,0.00011095,2]
[352376525,1739068235228,-490.82349288,0.00011095,2]
[352376526,1739068235241,-500.0,0.00011095,2]
[352376527,1739068235251,-598.99,0.00011095,2]
[352376528,1739068235262,-500.0,0.00011095,2]
[352376529,1739068235272,-500.0,0.00011095,2]
[352376530,1739068235281,-562.58652193,0.00011095,2]
[352376531,1739068235291,-506.00072646,0.00011095,2]
[352376532,1739068235301,-284.50629122,0.00011095,2]
[352376533,1739068235311,-567.81,0.00011095,2]
[352376534,1739068235321,-500.0,0.00011095,2]
[352376535,1739068235331,-500.0,0.00011095,2]
[352376536,1739068235341,-500.0,0.00011095,2]
[352376537,1739068235351,-500.0,0.00011095,2]
[352376538,1739068235360,-500.0,0.00011095,2]
[352376539,1739068235371,-8138.78,0.00011095,2]
[352376540,1739068235382,-1718.32,0.00011095,2]
[352376541,1739068235392,-856.67,0.00011095,2]
[352376542,1739068235402,-1055.91,0.00011095,2]
[352376543,1739068235412,-584.170787,0.00011095,2]
[352376544,1739068235424,-849.02,0.00011095,2]
[352376545,1739068235434,-503.06068519,0.00011095,2]
[352376546,1739068235443,-517.42009052,0.00011095,2]
[352376547,1739068235452,-597.76,0.00011095,2]
[352376548,1739068235462,-767.34,0.00011095,2]
[352376549,1739068235472,-788.04,0.00011095,2]
[352376550,1739068235482,-500.0,0.00011095,2]
[352376551,1739068235491,-500.0,0.00011095,2]
[352376552,1739068235501,-500.0,0.00011095,2]
[352376553,1739068235511,-506.28765223,0.00011095,2]
[352376554,1739068235521,-500.0,0.00011095,2]
[352376555,1739068235530,-245.30955627,0.00011095,2]
[352376556,1739068235540,-621.24,0.00011095,2]
[352376557,1739068235550,-2037.13,0.00011095,2]
[352376558,1739068235560,-500.0,0.00011095,2]
[352376559,1739068235570,-869.45,0.00011095,2]
[352376560,1739068235579,-500.0,0.00011095,2]
[352376561,1739068235589,-500.0,0.00011095,2]
[352376562,1739068235599,-500.0,0.00011095,2]
[352376563,1739068235609,-1608.64,0.00011095,2]
[352376564,1739068235619,-500.0,0.00011095,2]
[352376565,1739068235628,-500.0,0.00011095,2]
[352376566,1739068235638,-500.0,0.00011095,2]
[352376567,1739068235648,-820.13,0.00011095,2]
[352376568,1739068235657,-500.0,0.00011095,2]
[352376569,1739068235667,-500.0,0.00011095,2]
[352376570,1739068235677,-500.0,0.00011095,2]
[352376571,1739068235687,-6391.91,0.00011095,2]
[352376572,1739068235698,-1552.82,0.00011095,2]
[352376573,1739068235707,-4179.8,0.00011095,2]
[352376574,1739068235717,-500.0,0.00011095,2]
[352376575,1739068235726,-500.0,0.00011095,2]
[352376576,1739068235736,-500.0,0.00011095,2]
[352376577,1739068235746,-594.38531751,0.00011095,2]
[352376578,1739068235755,-982.07,0.00011095,2]
[352376579,1739068235765,-1598.21,0.00011095,2]
[352376580,1739068235774,-1429.08,0.00011095,2]
[352376581,1739068235784,-500.0,0.00011095,2]
[352376582,1739068235794,-500.0,0.00011095,2]
[352376583,1739068235803,-748.04,0.00011095,2]
[352376584,1739068235813,-1694.97,0.00011095,2]
[352376585,1739068235823,-442.62353827,0.00011095,2]
[352376586,1739068235834,-506.91324681,0.00011095,2]
[352376587,1739068235845,-500.0,0.00011095,2]
[352376588,1739068235855,-500.0,0.00011095,2]
[352376589,1739068235864,-813.76,0.00011095,2]
[352376590,1739068235874,-500.0,0.00011095,2]
[352376591,1739068235884,-500.0,0.00011095,2]
[352376592,1739068235894,-500.0,0.00011095,2]
[352376593,1739068235904,-500.0,0.00011095,2]
[352376594,1739068235918,-603.71,0.00011095,2]
[352376595,1739068235928,-430.87217542,0.00011095,2]
[352376596,1739068235937,-686.45,0.00011095,2]
[352376597,1739068235947,-500.0,0.00011095,2]
[352376598,1739068235957,-500.0,0.00011095,2]
[352376599,1739068235970,-500.0,0.00011095,2]
[352376600,1739068235980,-1367.18,0.00011095,2]
[352376601,1739068235989,-504.71210687,0.00011095,2]
[352376602,1739068235999,-749.65,0.00011095,2]
[352376603,1739068236010,-604.71864782,0.00011095,2]
[352376604,1739068236019,-16477.62,0.00011095,2]
[352376605,1739068236029,-153.0,0.000111,2]
[352376606,1739068236039,-153.0,0.000111,2]
[352376607,1739068236049,-215.7975175,0.000111,2]
[352376608,1739068236060,-153.0,0.000111,2]
[352376609,1739068236072,-153.0,0.000111,2]
[352376610,1739068236082,-153.0,0.000111,2]
[352376611,1739068236092,-215.7975175,0.000111,2]
[352376612,1739068236101,-215.7975175,0.000111,2]
[352376613,1739068236111,-153.0,0.000111,2]
[352376614,1739068236121,-153.0,0.000111,2]
[352376615,1739068236130,-306.0,0.000111,2]
[352376616,1739068236140,-307.6146941,0.000111,2]
[352376617,1739068236149,-357.8815711,0.000111,2]
[352376618,1739068236159,-217.7311107,0.000111,2]
[352376619,1739068236168,-153.3438062,0.000111,2]
[352376620,1739068236178,-1004.37,0.000112,3]
[352376621,1739068236187,-431.595035,0.000112,2]
[352376622,1739068236196,-153.0,0.000112,2]
[352376623,1739068236207,-354.7727591,0.000112,2]
[352376624,1739068236217,-153.0,0.000112,2]
[352376625,1739068236226,-215.7975175,0.000112,2]
[352376626,1739068236236,-215.7975175,0.000112,2]
[352376627,1739068236246,-153.0,0.000112,2]
[352376628,1739068236256,-153.0,0.000112,2]
[352376629,1739068236266,-153.0,0.000112,2]
[352376630,1739068236275,-500.0,0.00011232,2]
[352376631,1739068236285,-500.0,0.00011232,2]
[352376632,1739068236295,-500.0,0.00011232,2]
[352376633,1739068236304,-500.0,0.00011232,2]
[352376634,1739068236314,-720.35,0.00011232,2]
[352376635,1739068236324,-500.0,0.00011232,2]
[352376636,1739068236333,-237.20612821,0.00011232,2]
[352376637,1739068236343,-500.0,0.00011232,2]
[352376638,1739068236353,-662.9,0.00011232,2]
[352376639,1739068236363,-582.93843405,0.00011232,2]
[352376640,1739068236372,-524.5,0.00011232,2]
[352376641,1739068236382,-500.0,0.00011232,2]
[352376642,1739068236393,-500.0,0.00011232,2]
[352376643,1739068236403,-500.0,0.00011232,2]
[352376644,1739068236413,-500.0,0.00011232,2]
[352376645,1739068236423,-500.0,0.00011232,2]
[352376646,1739068236433,-544.77,0.00011232,2]
[352376647,1739068236442,-500.0,0.00011232,2]
[352376648,1739068236451,-500.0,0.00011232,2]
[352376649,1739068236461,-500.0,0.00011232,2]
[352376650,1739068236470,-500.0,0.00011232,2]
[352376651,1739068236480,-500.0,0.00011232,2]
[352376652,1739068236489,-598.99,0.00011232,2]
[352376653,1739068236500,-500.0,0.00011232,2]
[352376654,1739068236510,-500.0,0.00011232,2]
[352376655,1739068236520,-567.81,0.00011232,2]
[352376656,1739068236530,-500.0,0.00011232,2]
[352376657,1739068236539,-559.07,0.00011232,2]
[352376658,1739068236549,-500.0,0.00011232,2]
[352376659,1739068236558,-500.0,0.00011232,2]
[352376660,1739068236568,-500.0,0.00011232,2]
[352376661,1739068236577,-8138.78,0.00011232,2]
[352376662,1739068236587,-1718.32,0.00011232,2]
[352376663,1739068236596,-856.67,0.00011232,2]
[352376664,1739068236606,-1055.91,0.00011232,2]
[352376665,1739068236616,-849.02,0.00011232,2]
[352376666,1739068236627,-597.76,0.00011232,2]
[352376667,1739068236638,-767.34,0.00011232,2]
[352376668,1739068236648,-788.04,0.00011232,2]
[352376669,1739068236657,-500.0,0.00011232,2]
[352376670,1739068236667,-500.0,0.00011232,2]
[352376671,1739068236676,-500.0,0.00011232,2]
[352376672,1739068236686,-509.78486218,0.00011232,2]
[352376673,1739068236695,-621.24,0.00011232,2]
[352376674,1739068236705,-2037.13,0.00011232,2]
[352376675,1739068236715,-869.45,0.00011232,2]
[352376676,1739068236724,-500.0,0.00011232,2]
[352376677,1739068236734,-491.57,0.00011232,2]
[352376678,1739068236747,-500.0,0.00011232,2]
[352376679,1739068236756,-1608.64,0.00011232,2]
[352376680,1739068236766,-174.43251499,0.00011232,2]
[352376681,1739068236775,-500.0,0.00011232,2]
[352376682,1739068236785,-500.0,0.00011232,2]
[352376683,1739068236795,-820.13,0.00011232,2]
[352376684,1739068236805,-500.0,0.00011232,2]
[352376685,1739068236815,-500.0,0.00011232,2]
[352376686,1739068236824,-500.0,0.00011232,2]
[352376687,1739068236836,-6391.91,0.00011232,2]
[352376688,1739068236846,-1552.82,0.00011232,2]
[352376689,1739068236856,-4179.8,0.00011232,2]
[352376690,1739068236865,-500.0,0.00011232,2]
[352376691,1739068236876,-500.0,0.00011232,2]
[352376692,1739068236885,-982.07,0.00011232,2]
[352376693,1739068236895,-1598.21,0.00011232,2]
[352376694,1739068236905,-1429.08,0.00011232,2]
[352376695,1739068236919,-500.0,0.00011232,2]
[352376696,1739068236929,-500.0,0.00011232,2]
[352376697,1739068236939,-748.04,0.00011232,2]
[352376698,1739068236949,-1694.97,0.00011232,2]
[352376699,1739068236960,-500.0,0.00011232,2]
[352376700,1739068236970,-500.0,0.00011232,2]
[352376701,1739068236979,-813.76,0.00011232,2]
[352376702,1739068236989,-500.0,0.00011232,2]
[352376703,1739068236999,-599.2875589,0.00011232,2]
[352376704,1739068237009,-500.0,0.00011232,2]
[352376705,1739068237019,-603.71,0.00011232,2]
[352376706,1739068237028,-686.45,0.00011232,2]
[352376707,1739068237038,-500.0,0.00011232,2]
[352376708,1739068237048,-500.0,0.00011232,2]
[352376709,1739068237059,-500.0,0.00011232,2]
[352376710,1739068237077,-1367.18,0.00011232,2]
[352376711,1739068237087,-749.65,0.00011232,2]
[352376712,1739068237097,-16477.62,0.00011232,2]
[352376713,1739068237120,-585.7428082,0.00011255,2]
[352376714,1739068237136,-354.7727591,0.00011288,2]
[352376715,1739068237147,-354.7727591,0.000113,2]
[352376716,1739068237157,-215.7975175,0.000113,2]
[352376717,1739068237167,-382.2948201,0.00011366,2]
[352376718,1739068237176,-500.0,0.00011366,2]
[352376719,1739068237186,-500.0,0.00011366,2]
[352376720,1739068237196,-500.0,0.00011366,2]
[352376721,1739068237205,-190.5399338,0.00011366,2]
[352376722,1739068237216,-500.0,0.00011366,2]
[352376723,1739068237226,-500.0,0.00011366,2]
[352376724,1739068237235,-500.0,0.00011366,2]
[352376725,1739068237245,-500.0,0.00011366,2]
[352376726,1739068237255,-500.0,0.00011366,2]
[352376727,1739068237265,-498.29764716,0.00011366,2]
[352376728,1739068237275,-500.0,0.00011366,2]
[352376729,1739068237284,-500.0,0.00011366,2]
[352376730,1739068237294,-500.0,0.00011366,2]
[352376731,1739068237303,-500.0,0.00011366,2]
[352376732,1739068237313,-500.0,0.00011366,2]
[352376733,1739068237322,-500.0,0.00011366,2]
[352376734,1739068237332,-500.0,0.00011366,2]
[352376735,1739068237342,-500.0,0.00011366,2]
[352376736,1739068237352,-236.707419,0.00011366,2]
[352376737,1739068237361,-500.0,0.00011366,2]
[352376738,1739068237372,-500.0,0.00011366,2]
[352376739,1739068237382,-500.0,0.00011366,2]
[352376740,1739068237392,-500.0,0.00011366,2]
[352376741,1739068237401,-500.0,0.00011366,2]
[352376742,1739068237563,-500.0,0.00011366,2]
[352376743,1739068237573,-500.0,0.00011366,2]
[352376744,1739068237583,-500.0,0.00011366,2]
[352376745,1739068237592,-594.7945653,0.00011366,2]
[352376746,1739068237602,-500.0,0.00011366,2]
[352376747,1739068237612,-500.0,0.00011366,2]
[352376748,1739068237621,-500.0,0.00011366,2]
[352376749,1739068237631,-500.0,0.00011366,2]
[352376750,1739068237640,-500.0,0.00011366,2]
[352376751,1739068237649,-500.0,0.00011366,2]
[352376752,1739068237659,-501.14616329,0.00011366,2]
[352376753,1739068237668,-500.0,0.00011366,2]
[352376755,1739068237679,-500.0,0.00011366,2]
[352376757,1739068237688,-500.0,0.00011366,2]
[352376758,1739068237698,-299.99999999,0.00011366,2]
[352376760,1739068237708,-108445.93218112,0.00011367,5]
[352376807,1739068238236,3004.66462818,0.00014,30]
[352376814,1739068238290,-517.58572474,0.00010958,2]
[352376816,1739068238299,-38222.71407937,0.00011367,5]
[352376826,1739068238380,-6679.94717533,0.00011367,5]
[352376828,1739068238391,-5643.3861809,0.00011367,5]
[352377028,1739068240430,-7578.0,0.00010958,2]
[352377030,1739068240440,-11083.18129432,0.00011367,5]
[352377032,1739068240449,-57688.97537436,0.00011367,5]
[352377643,1739068246418,-715.12,0.00010958,2]
[352377645,1739068246428,-500.0,0.00010958,2]
[352377647,1739068246438,-7578.0,0.00011095,2]
[352377649,1739068246447,-715.12,0.00011095,2]
[352377651,1739068246456,-7578.0,0.00011232,2]
[352377653,1739068246465,-715.12,0.00011232,2]
[352377655,1739068246474,-67132.92313947,0.00011367,5]
[352377657,1739068246483,-257.7030334,0.00011368,2]
[352377659,1739068246493,-22530.61625695,0.00011368,2]
[352377661,1739068246504,-300.0,0.00011368,2]
[352381205,1739069115840,4000.0,0.0001402,28]
[352381206,1739069226133,-250.0,9.87e-05,2]
[352381207,1739069226154,-393.95614996,9.926e-05,2]
[352381208,1739069226179,-2447.29826723,0.00010026,2]
[352381290,1739069433063,-3964.91713127,0.00010026,2]
[352381291,1739069433073,-400.0,0.00010685,2]
[352381292,1739069433082,-155.679,0.000108,2]
[352381293,1739069433091,-151.0,0.00010951,2]
[352381294,1739069433101,-300.0,0.00010957,2]
[352381295,1739069433110,-501.56541673,0.00010958,2]
[352381296,1739069433119,-500.0,0.00010958,2]
[352381297,1739069433128,-500.0,0.00010958,2]
[352381298,1739069433138,-500.0,0.00010958,2]
[352381299,1739069433147,-500.0,0.00010958,2]
[352381300,1739069433157,-500.0,0.00010958,2]
[352381301,1739069433166,-500.0,0.00010958,2]
[352381302,1739069433175,-500.0,0.00010958,2]
[352381303,1739069433184,-500.0,0.00010958,2]
[352381304,1739069433193,-500.0,0.00010958,2]
[352381305,1739069433202,-633.69,0.00010958,2]
[352381306,1739069433212,-500.0,0.00010958,2]
[352381307,1739069433222,-500.0,0.00010958,2]
[352381308,1739069433235,-500.0,0.00010958,2]
[352381310,1739069433244,-500.0,0.00010958,2]
[352381312,1739069433255,-500.0,0.00010958,2]
[352381314,1739069433264,-500.0,0.00010958,2]
[352381316,1739069433274,-500.0,0.00010958,2]
[352381318,1739069433284,-500.0,0.00010958,2]
[352381320,1739069433294,-500.0,0.00010958,2]
[352381322,1739069433306,-500.42,0.00010958,2]
[352381324,1739069433315,-500.0,0.00010958,2]
[352381326,1739069433325,-649.8897557,0.00010958,2]
[352381328,1739069433334,-500.0,0.00010958,2]
[352381330,1739069433344,-500.0,0.00010958,2]
[352381332,1739069433354,-500.0,0.00010958,2]
[352381334,1739069433362,-500.0,0.00010958,2]
[352381336,1739069433372,-500.0,0.00010958,2]
[352381338,1739069433382,-500.0,0.00010958,2]
[352381340,1739069433391,-500.0,0.00010958,2]
[352381342,1739069433401,-500.0,0.00010958,2]
[352381344,1739069433411,-613.8,0.00010958,2]
[352381346,1739069433421,-500.0,0.00010958,2]
[352381348,1739069433430,-500.0,0.00010958,2]
[352381350,1739069433440,-555.8,0.00010958,2]
[352381352,1739069433449,-336.26870089,0.00010958,2]
[352381354,1739069433459,-500.0,0.00010958,2]
[352381356,1739069433469,-500.0,0.00010958,2]
[352381358,1739069433479,-500.0,0.00010958,2]
[352381360,1739069433488,-500.0,0.00010958,2]
[352381362,1739069433498,-501.17,0.00010958,2]
[352381364,1739069433507,-500.0,0.00010958,2]
[352381366,1739069433517,-965.81,0.00010958,2]
[352381368,1739069433526,-1579.2,0.00010958,2]
[352381370,1739069433535,-500.0,0.00010958,2]
[352381372,1739069433546,-549.42,0.00010958,2]
[352381374,1739069433555,-6630.75,0.00010958,2]
[352381376,1739069433564,-500.0,0.00010958,2]
[352381378,1739069433573,-777.45,0.00010958,2]
[352381380,1739069433584,-500.0,0.00010958,2]
[352381382,1739069433595,-500.0,0.00010958,2]
[352381384,1739069433604,-500.0,0.00010958,2]
[352381386,1739069433614,-500.0,0.00010958,2]
[352381388,1739069433623,-731.92,0.00010958,2]
[352381390,1739069433632,-500.0,0.00010958,2]
[352381392,1739069433642,-500.0,0.00010958,2]
[352381394,1739069433651,-706.87,0.00010958,2]
[352381396,1739069433660,-1992.69,0.00010958,2]
[352381398,1739069433670,-456.15729673,0.00010958,2]
[352381400,1739069433679,-500.0,0.00010958,2]
[352381402,1739069433688,-500.0,0.00010958,2]
[352381404,1739069433697,-500.0,0.00010958,2]
[352381406,1739069433707,-500.0,0.00010958,2]
[352381408,1739069433716,-500.0,0.00010958,2]
[352381410,1739069433725,-500.0,0.00010958,2]
[352381412,1739069433735,-500.0,0.00010958,2]
[352381414,1739069433744,-566.0,0.00010958,2]
[352381416,1739069433754,-500.0,0.00010958,2]
[352381418,1739069433763,-500.0,0.00010958,2]
[352381420,1739069433773,-834.86,0.00010958,2]
[352381422,1739069433782,-500.0,0.00010958,2]
[352381424,1739069433791,-500.0,0.00010958,2]
[352381426,1739069433800,-500.0,0.00010958,2]
[352381428,1739069433810,-1541.11,0.00010958,2]
[352381430,1739069433820,-500.0,0.00010958,2]
[352381432,1739069433830,-582.94,0.00010958,2]
[352381434,1739069433839,-500.0,0.00010958,2]
[352381436,1739069433849,-394.74985324,0.00010958,2]
[352381441,1739069433880,-105.25014676,0.00010958,2]
[352381443,1739069433889,-776.37989924,0.00010958,2]
[352381846,1739069438430,-6.98010076,0.00010958,2]
[352381848,1739069438439,-1485.4,0.00010958,2]
[352381850,1739069438449,-500.0,0.00010958,2]
[352381852,1739069438458,-500.0,0.00010958,2]
[352381854,1739069438467,-3866.19,0.00010958,2]
[352381856,1739069438477,-932.63,0.00010958,2]
[352381858,1739069438486,-500.0,0.00010958,2]
[352381860,1739069438496,-5969.21,0.00010958,2]
[352381862,1739069438505,-500.0,0.00010958,2]
[352381864,1739069438514,-500.0,0.00010958,2]
[352381866,1739069438524,-1543.79,0.00010958,2]
[352381868,1739069438533,-500.0,0.00010958,2]
[352381870,1739069438542,-500.0,0.00010958,2]
[352381872,1739069438552,-717.95,0.00010958,2]
[352381874,1739069438562,-1083.11,0.00010958,2]
[352381876,1739069438571,-1635.49,0.00010958,2]
[352381878,1739069438580,-500.0,0.00010958,2]
[352381880,1739069438589,-500.0,0.00010958,2]
[352381882,1739069438598,-500.0,0.00010958,2]
[352381884,1739069438607,-500.0,0.00010958,2]
[352381886,1739069438616,-602.70887955,0.00010958,2]
[352381888,1739069438626,-500.0,0.00010958,2]
[352381889,1739069438635,-500.0,0.00010958,2]
[352381891,1739069438644,-500.0,0.00010958,2]
[352381893,1739069438653,-500.0,0.00010958,2]
[352381896,1739069438663,-777.1,0.00010958,2]
[352381898,1739069438672,-653.79,0.00010958,2]
[352381900,1739069438682,-500.0,0.00010958,2]
[352381901,1739069438691,-749.9,0.00010958,2]
[352381903,1739069438700,-1324.35,0.00010958,2]
[352381905,1739069438710,-500.0,0.00010958,2]
[352381907,1739069438719,-500.0,0.00010958,2]
[352381910,1739069438729,-500.0,0.00010958,2]
[352381912,1739069438740,-2416.95,0.00010958,2]
[352381914,1739069438749,-625.73,0.00010958,2]
[352381916,1739069438758,-500.0,0.00010958,2]
[352381918,1739069438767,-11086.12145157,0.00010958,2]
[352382108,1739069440572,-1000.0,0.00010958,2]
[352384878,1739069609201,3000.0,0.00014,30]
[352384879,1739069609613,3000.0,0.0001401,30]
[352384880,1739069609996,3000.0,0.0001402,30]
[352384884,1739070340113,-228.60005069,9.941e-05,2]
[352384885,1739070451430,-651.72756081,9.941e-05,2]
[352384886,1739070451451,-5295.7089442,0.00010042,2]
[352384981,1739070632997,-252.76129741,0.00010041,2]
[352384983,1739070633009,-47.23870259,0.00010041,2]
[352384985,1739070633019,-4169.32178481,0.00010042,2]
[352384987,1739070633031,-1118.78858559,0.00010042,2]
[352385083,1739070638587,-7263.1113793,0.00010042,2]
[352385085,1739070638596,-8405.79674833,0.00010585,2]
[352385087,1739070638606,-400.0,0.00010685,2]
[352385089,1739070638616,-500.0,0.00010958,2]
[352385091,1739070638627,-500.0,0.00010958,2]
[352385093,1739070638638,-502.18964828,0.00010958,2]
[352385095,1739070638647,-500.0,0.00010958,2]
[352385097,1739070638657,-501.77215881,0.00010958,2]
[352385100,1739070638669,-500.0,0.00010958,2]
[352385102,1739070638679,-500.0,0.00010958,2]
[352385104,1739070638689,-500.0,0.00010958,2]
[352385105,1739070638698,-500.0,0.00010958,2]
[352385107,1739070638710,-559.57522098,0.00010958,2]